[Event "Titled Tuesday Blitz March 22 Early 2022"]
[White "Quirke, Jeffrey"]
[Black "Harish, Neeraj"]
[WhiteFideId "2013029"]
[BlackFideId "30958130"]
[WhiteElo "2219"]
[BlackElo "1574"]
[Result "1-0"]
[Round "07"]
[TimeControl "180+1"]
[Date "2022.03.22"]
[WhiteClock "0:00:40"]
[BlackClock "0:00:02"]

1. c4 {[%clk 0:03:00]}  Nf6 {[%clk 0:02:36]} 2. g3 {[%clk 0:03:00]}  g6 {[%clk 0:02:35]} 3. Bg2 {[%clk 0:02:59]}  Bg7 {[%clk 0:02:36]} 4. Nc3 {[%clk 0:02:59]}  c5 {[%clk 0:02:27]} 5. Nf3 {[%clk 0:02:57]}  O-O {[%clk 0:02:27]} 6. d4 {[%clk 0:02:58]}  cxd4 {[%clk 0:02:24]} 7. Nxd4 {[%clk 0:02:58]}  Nc6 {[%clk 0:02:24]} 8. O-O {[%clk 0:02:57]}  Nxd4 {[%clk 0:02:10]} 9. Qxd4 {[%clk 0:02:56]}  d6 {[%clk 0:02:10]} 10. Qd3 {[%clk 0:02:56]}  Bf5 {[%clk 0:02:08]} 11. e4 {[%clk 0:02:54]}  Be6 {[%clk 0:02:04]} 12. b3 {[%clk 0:02:49]}  Nd7 {[%clk 0:01:59]} 13. Bb2 {[%clk 0:02:48]}  Nc5 {[%clk 0:01:59]} 14. Qe2 {[%clk 0:02:42]}  a6 {[%clk 0:01:55]} 15. Rfd1 {[%clk 0:02:29]}  Qa5 {[%clk 0:01:49]} 16. Nd5 {[%clk 0:02:20]}  Bxd5 {[%clk 0:01:39]} 17. exd5 {[%clk 0:02:07]}  Bxb2 {[%clk 0:01:23]} 18. Qxb2 {[%clk 0:02:08]}  Qc7 {[%clk 0:01:16]} 19. h4 {[%clk 0:02:05]}  b5 {[%clk 0:01:16]} 20. h5 {[%clk 0:01:53]}  bxc4 {[%clk 0:01:15]} 21. h6 {[%clk 0:01:52]}  f6 {[%clk 0:01:10]} 22. bxc4 {[%clk 0:01:51]}  Rab8 {[%clk 0:01:06]} 23. Qe2 {[%clk 0:01:46]}  Rb4 {[%clk 0:00:52]} 24. Re1 {[%clk 0:01:39]}  Rf7 {[%clk 0:00:36]} 25. Bh3 {[%clk 0:01:34]}  f5 {[%clk 0:00:22]} 26. g4 {[%clk 0:01:31]}  f4 {[%clk 0:00:16]} 27. g5 {[%clk 0:01:22]}  f3 {[%clk 0:00:16]} 28. Qc2 {[%clk 0:01:16]}  Qd8 {[%clk 0:00:15]} 29. Be6 {[%clk 0:00:56]}  Nxe6 {[%clk 0:00:13]} 30. Rxe6 {[%clk 0:00:57]}  Rf5 {[%clk 0:00:12]} 31. Qc3 {[%clk 0:00:45]}  Rxg5+ {[%clk 0:00:05]} 32. Kf1 {[%clk 0:00:43]}  Qf8 {[%clk 0:00:02]} 33. Qxb4 {[%clk 0:00:40]} 1-0


[Site "https://www.chess.com"]

[Event "Titled Tuesday Blitz March 22 Early 2022"]
[White "Rosen, Eric"]
[Black "Aaditya Dhingra"]
[WhiteFideId "2032562"]
[BlackFideId "25678191"]
[WhiteElo "2362"]
[BlackElo "1849"]
[Result "0-1"]
[Round "07"]
[TimeControl "180+1"]
[Date "2022.03.22"]
[WhiteClock "0:00:04"]
[BlackClock "0:00:24"]

1. e4 {[%clk 0:03:00]}  c5 {[%clk 0:02:59]} 2. Nc3 {[%clk 0:02:59]}  e6 {[%clk 0:02:57]} 3. Nge2 {[%clk 0:02:50]}  a6 {[%clk 0:02:55]} 4. g3 {[%clk 0:02:49]}  b5 {[%clk 0:02:54]} 5. Bg2 {[%clk 0:02:48]}  Bb7 {[%clk 0:02:55]} 6. d3 {[%clk 0:02:45]}  g6 {[%clk 0:02:51]} 7. d4 {[%clk 0:02:27]}  c4 {[%clk 0:02:47]} 8. Be3 {[%clk 0:02:22]}  d6 {[%clk 0:02:46]} 9. O-O {[%clk 0:02:21]}  Bg7 {[%clk 0:02:45]} 10. a4 {[%clk 0:02:19]}  b4 {[%clk 0:02:44]} 11. Nb1 {[%clk 0:02:20]}  Nf6 {[%clk 0:02:40]} 12. Nd2 {[%clk 0:02:01]}  Qc7 {[%clk 0:02:39]} 13. c3 {[%clk 0:02:00]}  b3 {[%clk 0:02:36]} 14. h3 {[%clk 0:02:00]}  Nbd7 {[%clk 0:02:32]} 15. g4 {[%clk 0:01:58]}  d5 {[%clk 0:02:30]} 16. e5 {[%clk 0:01:56]}  Ng8 {[%clk 0:02:30]} 17. f4 {[%clk 0:01:57]}  Ne7 {[%clk 0:02:26]} 18. Ng3 {[%clk 0:01:54]}  Rg8 {[%clk 0:02:22]} 19. Kh2 {[%clk 0:01:53]}  f5 {[%clk 0:02:20]} 20. gxf5 {[%clk 0:01:43]}  exf5 {[%clk 0:02:12]} 21. Rf2 {[%clk 0:00:51]}  Nf8 {[%clk 0:02:11]} 22. Qh1 {[%clk 0:00:49]}  O-O-O {[%clk 0:02:08]} 23. Bf3 {[%clk 0:00:39]}  Ne6 {[%clk 0:01:47]} 24. Ne2 {[%clk 0:00:36]}  g5 {[%clk 0:01:38]} 25. fxg5 {[%clk 0:00:34]}  Bxe5+ {[%clk 0:01:36]} 26. dxe5 {[%clk 0:00:29]}  Qxe5+ {[%clk 0:01:36]} 27. Nf4 {[%clk 0:00:21]}  Nxf4 {[%clk 0:01:32]} 28. Bd4 {[%clk 0:00:20]}  Qc7 {[%clk 0:01:28]} 29. Kg1 {[%clk 0:00:14]}  Rxg5+ {[%clk 0:01:26]} 30. Kf1 {[%clk 0:00:14]}  Rdg8 {[%clk 0:01:14]} 31. Re1 {[%clk 0:00:11]}  Rg1+ {[%clk 0:01:05]} 32. Qxg1 {[%clk 0:00:11]}  Rxg1+ {[%clk 0:01:05]} 33. Kxg1 {[%clk 0:00:12]}  Nxh3+ {[%clk 0:01:06]} 34. Kf1 {[%clk 0:00:12]}  Nxf2 {[%clk 0:01:06]} 35. Bxf2 {[%clk 0:00:11]}  Ng6 {[%clk 0:01:03]} 36. Re8+ {[%clk 0:00:10]}  Kd7 {[%clk 0:01:03]} 37. Rg8 {[%clk 0:00:09]}  Qe5 {[%clk 0:00:59]} 38. Nxc4 {[%clk 0:00:06]}  dxc4 {[%clk 0:00:58]} 39. Bxb7 {[%clk 0:00:07]}  Qd6 {[%clk 0:00:45]} 40. a5 {[%clk 0:00:04]}  Qd1+ {[%clk 0:00:43]} 41. Kg2 {[%clk 0:00:04]}  Nf4+ {[%clk 0:00:39]} 42. Kg3 {[%clk 0:00:04]}  Ne2+ {[%clk 0:00:38]} 43. Kh4 {[%clk 0:00:03]}  Qd2 {[%clk 0:00:27]} 44. Rg7+ {[%clk 0:00:03]}  Ke6 {[%clk 0:00:25]} 45. Bb6 {[%clk 0:00:04]}  Qh6# {[%clk 0:00:24]} 0-1


[Site "https://www.chess.com"]

[Event "Titled Tuesday Blitz March 22 Early 2022"]
[White "Sadovsky, Artem"]
[Black "Sargsyan, Anna M."]
[WhiteFideId "4155840"]
[BlackFideId "13308130"]
[WhiteElo "2314"]
[BlackElo "2271"]
[Result "1/2-1/2"]
[Round "07"]
[TimeControl "180+1"]
[Date "2022.03.22"]
[WhiteClock "0:01:13"]
[BlackClock "0:01:16"]

1. Nf3 {[%clk 0:03:00]}  d5 {[%clk 0:02:59]} 2. e3 {[%clk 0:03:01]}  Nf6 {[%clk 0:02:58]} 3. c4 {[%clk 0:03:01]}  c6 {[%clk 0:02:58]} 4. b3 {[%clk 0:03:01]}  Bf5 {[%clk 0:02:57]} 5. Bb2 {[%clk 0:03:01]}  e6 {[%clk 0:02:58]} 6. Be2 {[%clk 0:03:01]}  Nbd7 {[%clk 0:02:57]} 7. O-O {[%clk 0:03:01]}  Be7 {[%clk 0:02:58]} 8. d3 {[%clk 0:03:01]}  O-O {[%clk 0:02:59]} 9. Nbd2 {[%clk 0:03:02]}  h6 {[%clk 0:02:59]} 10. Qc2 {[%clk 0:03:02]}  Re8 {[%clk 0:03:00]} 11. Rad1 {[%clk 0:03:03]}  Rc8 {[%clk 0:03:00]} 12. e4 {[%clk 0:02:58]}  dxe4 {[%clk 0:02:53]} 13. Nxe4 {[%clk 0:02:59]}  Qc7 {[%clk 0:02:51]} 14. Nxf6+ {[%clk 0:02:56]}  Bxf6 {[%clk 0:02:51]} 15. Bxf6 {[%clk 0:02:55]}  Nxf6 {[%clk 0:02:52]} 16. Qc3 {[%clk 0:02:55]}  e5 {[%clk 0:02:51]} 17. Rfe1 {[%clk 0:02:55]}  Rcd8 {[%clk 0:02:49]} 18. Bf1 {[%clk 0:02:55]}  Bg4 {[%clk 0:02:44]} 19. Be2 {[%clk 0:02:51]}  Re7 {[%clk 0:02:35]} 20. h3 {[%clk 0:02:48]}  Bh5 {[%clk 0:02:34]} 21. Nh4 {[%clk 0:02:47]}  Bxe2 {[%clk 0:02:27]} 22. Rxe2 {[%clk 0:02:48]}  e4 {[%clk 0:02:24]} 23. Nf5 {[%clk 0:02:44]}  Red7 {[%clk 0:02:24]} 24. Nxh6+ {[%clk 0:02:41]}  Kh8 {[%clk 0:02:20]} 25. Red2 {[%clk 0:02:18]}  Qf4 {[%clk 0:02:17]} 26. Ng4 {[%clk 0:02:10]}  Nxg4 {[%clk 0:02:14]} 27. hxg4 {[%clk 0:02:09]}  e3 {[%clk 0:02:15]} 28. Re2 {[%clk 0:02:03]}  Qxg4 {[%clk 0:02:11]} 29. f3 {[%clk 0:01:55]}  Qf4 {[%clk 0:02:11]} 30. c5 {[%clk 0:01:44]}  Rd5 {[%clk 0:02:09]} 31. d4 {[%clk 0:01:39]}  Re8 {[%clk 0:02:05]} 32. Rd3 {[%clk 0:01:37]}  Rh5 {[%clk 0:01:37]} 33. Rdxe3 {[%clk 0:01:29]}  Qh2+ {[%clk 0:01:33]} 34. Kf1 {[%clk 0:01:30]}  Qh1+ {[%clk 0:01:33]} 35. Kf2 {[%clk 0:01:30]}  Qh4+ {[%clk 0:01:33]} 36. Kf1 {[%clk 0:01:24]}  Qh1+ {[%clk 0:01:30]} 37. Kf2 {[%clk 0:01:24]}  Qh4+ {[%clk 0:01:26]} 38. Kg1 {[%clk 0:01:13]}  Qh1+ {[%clk 0:01:16]} 39. Kf2 {[%clk 0:01:13]} 1/2-1/2


[Site "https://www.chess.com"]

[Event "Titled Tuesday Blitz March 22 Early 2022"]
[White "Sailer, Mike"]
[Black "Hirneise, Jens"]
[WhiteFideId "2012901"]
[BlackFideId "24614734"]
[WhiteElo "2109"]
[BlackElo "2359"]
[Result "0-1"]
[Round "07"]
[TimeControl "180+1"]
[Date "2022.03.22"]
[WhiteClock "0:00:01"]
[BlackClock "0:00:22"]

1. d4 {[%clk 0:02:59]}  d5 {[%clk 0:02:57]} 2. Nf3 {[%clk 0:03:00]}  Nf6 {[%clk 0:02:56]} 3. Bf4 {[%clk 0:03:00]}  e6 {[%clk 0:02:54]} 4. e3 {[%clk 0:03:00]}  Bd6 {[%clk 0:02:54]} 5. Bxd6 {[%clk 0:03:00]}  cxd6 {[%clk 0:02:52]} 6. Bd3 {[%clk 0:02:59]}  Nc6 {[%clk 0:02:52]} 7. O-O {[%clk 0:02:56]}  e5 {[%clk 0:02:48]} 8. Bb5 {[%clk 0:02:48]}  e4 {[%clk 0:02:38]} 9. Nfd2 {[%clk 0:02:45]}  O-O {[%clk 0:02:39]} 10. c4 {[%clk 0:02:44]}  Nb4 {[%clk 0:02:35]} 11. cxd5 {[%clk 0:02:28]}  Nbxd5 {[%clk 0:02:31]} 12. Nc3 {[%clk 0:02:13]}  Nc7 {[%clk 0:02:27]} 13. Be2 {[%clk 0:02:11]}  d5 {[%clk 0:02:27]} 14. Rc1 {[%clk 0:02:10]}  g6 {[%clk 0:02:26]} 15. f3 {[%clk 0:01:59]}  exf3 {[%clk 0:02:23]} 16. Nxf3 {[%clk 0:01:52]}  Ng4 {[%clk 0:02:20]} 17. Qd2 {[%clk 0:01:45]}  Re8 {[%clk 0:02:19]} 18. Nd1 {[%clk 0:01:45]}  Qe7 {[%clk 0:02:13]} 19. Rc3 {[%clk 0:01:44]}  f5 {[%clk 0:01:51]} 20. h3 {[%clk 0:01:40]}  Nf6 {[%clk 0:01:51]} 21. Ne5 {[%clk 0:01:39]}  Ne4 {[%clk 0:01:51]} 22. Qc2 {[%clk 0:01:34]}  Nxc3 {[%clk 0:01:50]} 23. bxc3 {[%clk 0:01:23]}  Be6 {[%clk 0:01:51]} 24. Nb2 {[%clk 0:01:18]}  Rac8 {[%clk 0:01:44]} 25. Qb3 {[%clk 0:01:09]}  Na8 {[%clk 0:01:26]} 26. Nbd3 {[%clk 0:01:05]}  Nb6 {[%clk 0:01:25]} 27. Nf4 {[%clk 0:00:59]}  Qc7 {[%clk 0:01:19]} 28. Rc1 {[%clk 0:00:52]}  Qd6 {[%clk 0:01:12]} 29. a4 {[%clk 0:00:44]}  Rc7 {[%clk 0:01:10]} 30. a5 {[%clk 0:00:42]}  Nc4 {[%clk 0:01:07]} 31. Bxc4 {[%clk 0:00:37]}  dxc4 {[%clk 0:01:06]} 32. Qb5 {[%clk 0:00:28]}  Bd7 {[%clk 0:01:04]} 33. Qb1 {[%clk 0:00:19]}  Rxe5 {[%clk 0:01:01]} 34. dxe5 {[%clk 0:00:19]}  Qxe5 {[%clk 0:01:02]} 35. Kf2 {[%clk 0:00:14]}  Bc6 {[%clk 0:01:01]} 36. Rd1 {[%clk 0:00:07]}  Re7 {[%clk 0:01:00]} 37. Qc1 {[%clk 0:00:07]}  g5 {[%clk 0:00:59]} 38. Ne2 {[%clk 0:00:06]}  f4 {[%clk 0:00:58]} 39. Nd4 {[%clk 0:00:04]}  fxe3+ {[%clk 0:00:50]} 40. Kg1 {[%clk 0:00:04]}  Bd5 {[%clk 0:00:47]} 41. Re1 {[%clk 0:00:03]}  b6 {[%clk 0:00:33]} 42. Qb2 {[%clk 0:00:03]}  bxa5 {[%clk 0:00:30]} 43. Qe2 {[%clk 0:00:03]}  a4 {[%clk 0:00:29]} 44. Rb1 {[%clk 0:00:03]}  a3 {[%clk 0:00:28]} 45. Ra1 {[%clk 0:00:04]}  Qd6 {[%clk 0:00:26]} 46. Qc2 {[%clk 0:00:03]}  Be4 {[%clk 0:00:25]} 47. Qa4 {[%clk 0:00:03]}  Qd5 {[%clk 0:00:25]} 48. Rxa3 {[%clk 0:00:02]}  Bxg2 {[%clk 0:00:24]} 49. Qa6 {[%clk 0:00:01]}  Bxh3 {[%clk 0:00:22]} 0-1


[Site "https://www.chess.com"]

[Event "Titled Tuesday Blitz March 22 Early 2022"]
[White "Saldano Dayer, Horacio"]
[Black "Dilanyan, Grigor"]
[WhiteFideId "103411"]
[BlackFideId "13303570"]
[WhiteElo "2419"]
[BlackElo "2279"]
[Result "0-1"]
[Round "07"]
[TimeControl "180+1"]
[Date "2022.03.22"]
[WhiteClock "0:00:04"]
[BlackClock "0:01:47"]

1. e4 {[%clk 0:02:18]}  c6 {[%clk 0:02:58]} 2. Nf3 {[%clk 0:02:08]}  d5 {[%clk 0:02:59]} 3. d3 {[%clk 0:02:08]}  Qc7 {[%clk 0:02:58]} 4. exd5 {[%clk 0:02:04]}  cxd5 {[%clk 0:02:57]} 5. c4 {[%clk 0:02:05]}  Nf6 {[%clk 0:02:53]} 6. Nc3 {[%clk 0:02:01]}  dxc4 {[%clk 0:02:50]} 7. dxc4 {[%clk 0:01:58]}  g6 {[%clk 0:02:50]} 8. Bg5 {[%clk 0:01:49]}  Bg7 {[%clk 0:02:50]} 9. Bxf6 {[%clk 0:01:45]}  Bxf6 {[%clk 0:02:50]} 10. Nd5 {[%clk 0:01:45]}  Qc6 {[%clk 0:02:43]} 11. Nxf6+ {[%clk 0:01:42]}  Qxf6 {[%clk 0:02:38]} 12. Qd4 {[%clk 0:01:41]}  Qe6+ {[%clk 0:02:31]} 13. Qe5 {[%clk 0:01:28]}  Nc6 {[%clk 0:02:30]} 14. Qxe6 {[%clk 0:01:25]}  Bxe6 {[%clk 0:02:31]} 15. O-O-O {[%clk 0:01:23]}  Rc8 {[%clk 0:02:29]} 16. b3 {[%clk 0:01:01]}  b5 {[%clk 0:02:18]} 17. cxb5 {[%clk 0:00:47]}  Nb4+ {[%clk 0:02:17]} 18. Kb2 {[%clk 0:00:47]}  Rc2+ {[%clk 0:02:16]} 19. Ka3 {[%clk 0:00:46]}  Nxa2 {[%clk 0:02:16]} 20. Nd4 {[%clk 0:00:40]}  Rxf2 {[%clk 0:02:09]} 21. Nxe6 {[%clk 0:00:32]}  fxe6 {[%clk 0:02:09]} 22. b6 {[%clk 0:00:26]}  O-O {[%clk 0:02:01]} 23. Bc4 {[%clk 0:00:17]}  axb6 {[%clk 0:01:56]} 24. Bxe6+ {[%clk 0:00:15]}  Kg7 {[%clk 0:01:56]} 25. Rd4 {[%clk 0:00:10]}  b5 {[%clk 0:01:52]} 26. b4 {[%clk 0:00:08]}  Nc3 {[%clk 0:01:51]} 27. Kb3 {[%clk 0:00:07]}  Ne2 {[%clk 0:01:47]} 28. Re4 {[%clk 0:00:04]}  Rxg2 {[%clk 0:01:47]} 29. Re1 {[%clk 0:00:04]}  Rf3+ {[%clk 0:01:47]} 0-1


[Site "https://www.chess.com"]

[Event "Titled Tuesday Blitz March 22 Early 2022"]
[White "Samunenkov, Ihor"]
[Black "Myshakov, Fyodor"]
[WhiteFideId "14187086"]
[BlackFideId "14111284"]
[WhiteElo "2409"]
[BlackElo "2310"]
[Result "1-0"]
[Round "07"]
[TimeControl "180+1"]
[Date "2022.03.22"]
[WhiteClock "0:00:39"]
[BlackClock "0:01:32"]

1. e4 {[%clk 0:03:00]}  c6 {[%clk 0:02:59]} 2. Nf3 {[%clk 0:02:59]}  d5 {[%clk 0:02:59]} 3. d3 {[%clk 0:02:59]}  dxe4 {[%clk 0:02:59]} 4. dxe4 {[%clk 0:03:00]}  Qxd1+ {[%clk 0:02:58]} 5. Kxd1 {[%clk 0:03:00]}  g6 {[%clk 0:02:56]} 6. h3 {[%clk 0:02:48]}  Bg7 {[%clk 0:02:55]} 7. c3 {[%clk 0:02:48]}  Nf6 {[%clk 0:02:54]} 8. Bd3 {[%clk 0:02:45]}  Nbd7 {[%clk 0:02:53]} 9. Be3 {[%clk 0:02:45]}  O-O {[%clk 0:02:50]} 10. a4 {[%clk 0:02:45]}  b6 {[%clk 0:02:50]} 11. Kc2 {[%clk 0:02:43]}  Bb7 {[%clk 0:02:50]} 12. Nbd2 {[%clk 0:02:39]}  c5 {[%clk 0:02:50]} 13. a5 {[%clk 0:02:28]}  c4 {[%clk 0:02:48]} 14. Nxc4 {[%clk 0:02:14]}  Nxe4 {[%clk 0:02:44]} 15. axb6 {[%clk 0:02:09]}  axb6 {[%clk 0:02:43]} 16. Nxb6 {[%clk 0:02:09]}  Rxa1 {[%clk 0:02:44]} 17. Rxa1 {[%clk 0:02:08]}  Ndc5 {[%clk 0:02:44]} 18. Ra7 {[%clk 0:01:58]}  Nxd3 {[%clk 0:02:40]} 19. Kxd3 {[%clk 0:01:54]}  Nd6 {[%clk 0:02:26]} 20. Bf4 {[%clk 0:01:37]}  Be4+ {[%clk 0:02:23]} 21. Ke3 {[%clk 0:01:30]}  Bc6 {[%clk 0:02:02]} 22. Bxd6 {[%clk 0:01:19]}  exd6 {[%clk 0:02:03]} 23. Nc4 {[%clk 0:01:18]}  Bh6+ {[%clk 0:01:51]} 24. Kd3 {[%clk 0:01:11]}  Bb5 {[%clk 0:01:51]} 25. Nd4 {[%clk 0:01:10]}  Bxc4+ {[%clk 0:01:40]} 26. Kxc4 {[%clk 0:00:55]}  Rc8+ {[%clk 0:01:41]} 27. Kd3 {[%clk 0:00:51]}  Bc1 {[%clk 0:01:39]} 28. b4 {[%clk 0:00:42]}  d5 {[%clk 0:01:38]} 29. b5 {[%clk 0:00:41]}  Bb2 {[%clk 0:01:38]} 30. Nc6 {[%clk 0:00:41]}  Kg7 {[%clk 0:01:32]} 31. Kc2 {[%clk 0:00:39]} 1-0


[Site "https://www.chess.com"]

[Event "Titled Tuesday Blitz March 22 Early 2022"]
[White "Shuvalov, Evgenij"]
[Black "Golubev, Mikhail"]
[WhiteFideId "4187237"]
[BlackFideId "14100983"]
[WhiteElo "2151"]
[BlackElo "2374"]
[Result "0-1"]
[Round "07"]
[TimeControl "180+1"]
[Date "2022.03.22"]
[WhiteClock "0:00:56"]
[BlackClock "0:01:04"]

1. Nf3 {[%clk 0:03:00]}  d6 {[%clk 0:02:59]} 2. d4 {[%clk 0:03:00]}  Nf6 {[%clk 0:02:59]} 3. c4 {[%clk 0:03:00]}  g6 {[%clk 0:02:59]} 4. Nc3 {[%clk 0:02:59]}  Bg7 {[%clk 0:02:59]} 5. e4 {[%clk 0:02:59]}  O-O {[%clk 0:02:59]} 6. Be2 {[%clk 0:03:00]}  e5 {[%clk 0:03:00]} 7. O-O {[%clk 0:02:59]}  Nc6 {[%clk 0:03:00]} 8. d5 {[%clk 0:02:59]}  Ne7 {[%clk 0:03:00]} 9. Ne1 {[%clk 0:02:59]}  Ne8 {[%clk 0:02:59]} 10. Be3 {[%clk 0:02:58]}  f5 {[%clk 0:02:56]} 11. f3 {[%clk 0:02:58]}  f4 {[%clk 0:02:56]} 12. Bf2 {[%clk 0:02:59]}  g5 {[%clk 0:02:56]} 13. Rc1 {[%clk 0:02:58]}  h5 {[%clk 0:02:47]} 14. c5 {[%clk 0:02:58]}  Rf6 {[%clk 0:02:33]} 15. Nb5 {[%clk 0:02:40]}  a6 {[%clk 0:02:13]} 16. Na3 {[%clk 0:02:38]}  Rg6 {[%clk 0:02:06]} 17. Nc4 {[%clk 0:02:26]}  g4 {[%clk 0:02:03]} 18. cxd6 {[%clk 0:02:20]}  Nxd6 {[%clk 0:02:02]} 19. Bh4 {[%clk 0:01:36]}  Qf8 {[%clk 0:01:24]} 20. Kh1 {[%clk 0:01:30]}  Bf6 {[%clk 0:01:20]} 21. Bxf6 {[%clk 0:01:25]}  Qxf6 {[%clk 0:01:21]} 22. Nd3 {[%clk 0:01:24]}  g3 {[%clk 0:01:17]} 23. Nxd6 {[%clk 0:01:04]}  Qh4 {[%clk 0:01:09]} 24. h3 {[%clk 0:01:04]}  Bxh3 {[%clk 0:01:08]} 25. Rf2 {[%clk 0:00:57]}  Bxg2+ {[%clk 0:01:05]} 26. Kxg2 {[%clk 0:00:57]}  Qh2+ {[%clk 0:01:05]} 27. Kf1 {[%clk 0:00:56]}  Qh1# {[%clk 0:01:04]} 0-1


[Site "https://www.chess.com"]

[Event "Titled Tuesday Blitz March 22 Early 2022"]
[White "Shuvalova, Polina"]
[Black "Hoeffer, David"]
[WhiteFideId "24171760"]
[BlackFideId "24606766"]
[WhiteElo "2355"]
[BlackElo "2301"]
[Result "1-0"]
[Round "07"]
[TimeControl "180+1"]
[Date "2022.03.22"]
[WhiteClock "0:01:24"]
[BlackClock "0:01:56"]

1. d4 {[%clk 0:03:00]}  d5 {[%clk 0:02:59]} 2. Nf3 {[%clk 0:03:00]}  Nf6 {[%clk 0:02:59]} 3. Bf4 {[%clk 0:03:00]}  c5 {[%clk 0:02:58]} 4. e3 {[%clk 0:02:57]}  Nc6 {[%clk 0:02:57]} 5. Nbd2 {[%clk 0:02:55]}  e6 {[%clk 0:02:57]} 6. c3 {[%clk 0:02:53]}  Be7 {[%clk 0:02:57]} 7. Bd3 {[%clk 0:02:52]}  O-O {[%clk 0:02:57]} 8. h4 {[%clk 0:02:52]}  cxd4 {[%clk 0:02:52]} 9. exd4 {[%clk 0:02:52]}  Re8 {[%clk 0:02:51]} 10. Ne5 {[%clk 0:02:46]}  Nxe5 {[%clk 0:02:38]} 11. dxe5 {[%clk 0:02:45]}  Nd7 {[%clk 0:02:38]} 12. Nf3 {[%clk 0:02:43]}  Nc5 {[%clk 0:02:35]} 13. Bxh7+ {[%clk 0:02:31]}  Kf8 {[%clk 0:02:32]} 14. Bc2 {[%clk 0:02:26]}  Qb6 {[%clk 0:02:30]} 15. Rb1 {[%clk 0:02:07]}  Rd8 {[%clk 0:02:28]} 16. Nd4 {[%clk 0:02:05]}  Ne4 {[%clk 0:02:24]} 17. Qh5 {[%clk 0:01:59]}  Bc5 {[%clk 0:02:24]} 18. O-O {[%clk 0:01:49]}  Bxd4 {[%clk 0:02:22]} 19. cxd4 {[%clk 0:01:38]}  Qxd4 {[%clk 0:02:23]} 20. Qh8+ {[%clk 0:01:33]}  Ke7 {[%clk 0:02:23]} 21. Qxg7 {[%clk 0:01:34]}  Bd7 {[%clk 0:01:56]} 22. Rbd1 {[%clk 0:01:26]}  Qc4 {[%clk 0:01:55]} 23. Bxe4 {[%clk 0:01:24]}  Qxe4 {[%clk 0:01:56]} 24. Bg5+ {[%clk 0:01:24]} 1-0


[Site "https://www.chess.com"]

[Event "Titled Tuesday Blitz March 22 Early 2022"]
[White "Siniauski, Artsiom"]
[Black "Purtseladze, Maka"]
[WhiteFideId "13512269"]
[BlackFideId "13602659"]
[WhiteElo "2187"]
[BlackElo "2224"]
[Result "1-0"]
[Round "07"]
[TimeControl "180+1"]
[Date "2022.03.22"]
[WhiteClock "0:00:03"]
[BlackClock "0:00:08"]

1. e4 {[%clk 0:03:00]}  c6 {[%clk 0:02:59]} 2. Nc3 {[%clk 0:02:58]}  d5 {[%clk 0:02:57]} 3. Nf3 {[%clk 0:02:55]}  dxe4 {[%clk 0:02:56]} 4. Nxe4 {[%clk 0:02:55]}  Nf6 {[%clk 0:02:56]} 5. Nxf6+ {[%clk 0:02:55]}  gxf6 {[%clk 0:02:56]} 6. d4 {[%clk 0:02:48]}  Bf5 {[%clk 0:02:55]} 7. g3 {[%clk 0:02:44]}  Qd5 {[%clk 0:02:30]} 8. Bg2 {[%clk 0:02:43]}  Be4 {[%clk 0:02:30]} 9. O-O {[%clk 0:02:37]}  Nd7 {[%clk 0:02:26]} 10. b3 {[%clk 0:02:33]}  b5 {[%clk 0:02:23]} 11. Bb2 {[%clk 0:02:29]}  e6 {[%clk 0:02:22]} 12. Re1 {[%clk 0:02:23]}  b4 {[%clk 0:02:08]} 13. a3 {[%clk 0:02:21]}  bxa3 {[%clk 0:02:07]} 14. c4 {[%clk 0:02:03]}  axb2 {[%clk 0:01:56]} 15. cxd5 {[%clk 0:02:03]}  bxa1=Q {[%clk 0:01:55]} 16. Qxa1 {[%clk 0:02:04]}  Bxd5 {[%clk 0:01:49]} 17. Qa4 {[%clk 0:01:51]}  Nb6 {[%clk 0:01:43]} 18. Qa5 {[%clk 0:01:44]}  Bd6 {[%clk 0:01:42]} 19. Nh4 {[%clk 0:01:41]}  O-O {[%clk 0:01:29]} 20. Bxd5 {[%clk 0:01:41]}  Nxd5 {[%clk 0:01:25]} 21. Qa6 {[%clk 0:01:23]}  Rfc8 {[%clk 0:01:19]} 22. Rc1 {[%clk 0:01:22]}  Rab8 {[%clk 0:01:07]} 23. Rxc6 {[%clk 0:01:17]}  Rxc6 {[%clk 0:01:03]} 24. Qxc6 {[%clk 0:01:18]}  Bf8 {[%clk 0:00:54]} 25. Qa4 {[%clk 0:01:11]}  Rb4 {[%clk 0:00:43]} 26. Qxa7 {[%clk 0:01:10]}  Rxb3 {[%clk 0:00:44]} 27. Kg2 {[%clk 0:01:00]}  Rb2 {[%clk 0:00:37]} 28. Qa4 {[%clk 0:00:51]}  Kg7 {[%clk 0:00:33]} 29. Qa1 {[%clk 0:00:36]}  Rd2 {[%clk 0:00:31]} 30. Qc1 {[%clk 0:00:27]}  Rxd4 {[%clk 0:00:25]} 31. Nf3 {[%clk 0:00:25]}  Rb4 {[%clk 0:00:22]} 32. h4 {[%clk 0:00:24]}  h6 {[%clk 0:00:19]} 33. h5 {[%clk 0:00:24]}  f5 {[%clk 0:00:19]} 34. Nh4 {[%clk 0:00:21]}  Be7 {[%clk 0:00:19]} 35. Nf3 {[%clk 0:00:20]}  Bf6 {[%clk 0:00:20]} 36. Qc6 {[%clk 0:00:18]}  Rb2 {[%clk 0:00:19]} 37. Qc5 {[%clk 0:00:14]}  Be7 {[%clk 0:00:18]} 38. Qd4+ {[%clk 0:00:12]}  Bf6 {[%clk 0:00:19]} 39. Qc5 {[%clk 0:00:12]}  Ra2 {[%clk 0:00:18]} 40. Ne1 {[%clk 0:00:10]}  Re2 {[%clk 0:00:18]} 41. Nd3 {[%clk 0:00:10]}  Ne3+ {[%clk 0:00:18]} 42. Kf3 {[%clk 0:00:09]}  Ng4 {[%clk 0:00:18]} 43. Kxe2 {[%clk 0:00:09]}  e5 {[%clk 0:00:14]} 44. Qc6 {[%clk 0:00:08]}  e4 {[%clk 0:00:14]} 45. Nf4 {[%clk 0:00:09]}  Bd4 {[%clk 0:00:14]} 46. Qb7 {[%clk 0:00:09]}  Bxf2 {[%clk 0:00:12]} 47. Qb5 {[%clk 0:00:08]}  Kf6 {[%clk 0:00:10]} 48. Qc6+ {[%clk 0:00:07]}  Kg5 {[%clk 0:00:10]} 49. Qd5 {[%clk 0:00:05]}  Bxg3 {[%clk 0:00:09]} 50. Nh3+ {[%clk 0:00:04]}  Kh4 {[%clk 0:00:10]} 51. Ng1 {[%clk 0:00:04]}  f4 {[%clk 0:00:09]} 52. Qf5 {[%clk 0:00:04]}  f3+ {[%clk 0:00:10]} 53. Nxf3+ {[%clk 0:00:04]}  exf3+ {[%clk 0:00:11]} 54. Kxf3 {[%clk 0:00:04]}  Nh2+ {[%clk 0:00:12]} 55. Kg2 {[%clk 0:00:05]}  Ng4 {[%clk 0:00:12]} 56. Qxf7 {[%clk 0:00:04]}  Ne3+ {[%clk 0:00:10]} 57. Kf3 {[%clk 0:00:04]}  Ng4 {[%clk 0:00:10]} 58. Qc4 {[%clk 0:00:04]}  Bf4 {[%clk 0:00:08]} 59. Qxf4 {[%clk 0:00:03]} 1-0


[Site "https://www.chess.com"]